bitfinex/quotes_BTCUSD_20250814
["timestamp","ask_amount","ask_price","bid_price","bid_amount"]
[1755138978689,0.01932708,123350.0,123340.0,0.02601218]
[1755138978893,0.01932708,123350.0,123340.0,1.3136511]
[1755138979130,0.01932708,123350.0,123340.0,0.8136511]
[1755138979529,0.02132708,123350.0,123340.0,0.16049218]
[1755138979683,0.01932708,123350.0,123340.0,1.3136511]
[1755138979880,0.01932708,123350.0,123340.0,0.16049218]
[1755138980231,0.01932708,123350.0,123340.0,1.3136511]
[1755138980232,0.02666708,123350.0,123340.0,1.3136511]
[1755138980466,0.02666708,123350.0,123340.0,0.16049218]
[1755138980671,0.02666708,123350.0,123340.0,1.3136511]
[1755138980906,0.02666708,123350.0,123340.0,0.8136511]
[1755138981201,0.02666708,123350.0,123340.0,0.6791711]
[1755138981328,0.01156875,123350.0,123340.0,0.6771211]
[1755138981538,0.00622875,123350.0,123340.0,0.8139311]
[1755138981788,0.00622875,123350.0,123340.0,0.9547891]
[1755138981935,0.00622875,123350.0,123340.0,1.61092802]
[1755138982135,0.00622875,123350.0,123340.0,1.47616802]
[1755138982386,0.02130001,123350.0,123340.0,1.69409127]
[1755138982563,0.02130001,123350.0,123340.0,1.55889127]
[1755138982963,0.02130001,123350.0,123340.0,1.69417127]
[1755138983167,0.02130001,123350.0,123340.0,1.75214587]
[1755138983353,0.00622875,123350.0,123340.0,1.64190587]
[1755138983554,0.00422875,123350.0,123340.0,1.77714587]
[1755138983758,0.00422875,123350.0,123340.0,1.77914587]
[1755138984162,0.00422875,123350.0,123340.0,1.77714587]
[1755138984379,0.00422875,123350.0,123340.0,1.77706587]
[1755138984602,0.00422875,123350.0,123340.0,1.78106587]
[1755138984785,0.00422875,123350.0,123340.0,1.78118587]
[1755138984993,0.00422875,123350.0,123340.0,2.17738587]
[1755138985880,0.00422875,123350.0,123340.0,2.04510587]
[1755138986080,0.00422875,123350.0,123340.0,2.18042587]
[1755138986278,0.00422875,123350.0,123340.0,1.84310587]
[1755138986533,0.00422875,123350.0,123340.0,1.97850587]
[1755138986692,0.00422875,123350.0,123340.0,1.97450587]
[1755138986902,0.00422875,123350.0,123340.0,0.66818803]
[1755138987218,0.00422875,123350.0,123340.0,1.69725127]
[1755138987398,0.00422875,123350.0,123340.0,1.75726587]
[1755138987598,0.00422875,123350.0,123340.0,1.77204676]
[1755138987985,0.00422875,123350.0,123340.0,1.77208676]
[1755138988527,0.00422875,123350.0,123340.0,1.63668676]
[1755138988714,0.00422875,123350.0,123340.0,1.77208676]
[1755138989385,0.00422875,123350.0,123340.0,1.69929127]
[1755138989740,0.00633875,123350.0,123340.0,1.04315235]
[1755138989943,0.00956875,123350.0,123340.0,1.07766142]
[1755138990082,0.00956875,123350.0,123340.0,1.59542034]
[1755138990285,0.00956875,123350.0,123340.0,1.67311827]
[1755138990486,0.00422875,123350.0,123340.0,1.67311827]
[1755138990688,0.00422875,123350.0,123340.0,1.53771827]
[1755138990925,0.00422875,123350.0,123340.0,1.59840034]
[1755138991129,0.00422875,123350.0,123340.0,1.73372034]
[1755138992444,0.00956875,123350.0,123340.0,0.20432925]
[1755138992626,0.00956875,123350.0,123340.0,0.6821211]
[1755138992827,0.00956875,123350.0,123340.0,0.9589461]
[1755138993029,0.00956875,123350.0,123340.0,1.47690502]
[1755138993243,0.00956875,123350.0,123340.0,1.61210502]
[1755138993635,0.00956875,123350.0,123340.0,1.47690502]
[1755138993835,0.00956875,123350.0,123340.0,1.60906502]
[1755138994052,0.00956875,123350.0,123340.0,1.47390502]
[1755138994320,0.00956875,123350.0,123340.0,1.47690502]
[1755138994496,0.00956875,123350.0,123340.0,1.67185709]
[1755138994693,0.00633875,123350.0,123340.0,1.66685709]
[1755138995105,0.00633875,123350.0,123340.0,2.06693709]
[1755138995309,0.02137711,123350.0,123340.0,2.14666034]
[1755138995551,0.00422875,123350.0,123340.0,2.04558034]
[1755138995792,0.00422875,123350.0,123340.0,1.75344034]
[1755138996166,0.00422875,123350.0,123340.0,1.75340034]
[1755138996608,0.00422875,123350.0,123340.0,0.4470825]
[1755138996811,0.00422875,123350.0,123340.0,0.4441025]
[1755138997212,0.02421541,123350.0,123340.0,0.4420525]
[1755138997435,0.02421541,123350.0,123340.0,0.22428925]
[1755138997642,0.02421541,123350.0,123340.0,0.35920925]
[1755138998107,0.02421541,123350.0,123340.0,0.32663025]
[1755138999069,0.02421541,123350.0,123340.0,0.54700625]
[1755138999272,0.02422851,123350.0,123340.0,0.41208625]
[1755138999485,0.02422851,123350.0,123340.0,0.21750425]
[1755138999681,0.02422851,123350.0,123340.0,0.08266425]
[1755138999889,0.02422851,123350.0,123340.0,0.21750425]
[1755139000360,0.01928851,123350.0,123340.0,0.58653325]
[1755139000493,0.02422851,123350.0,123340.0,0.58653325]
[1755139000695,0.02422851,123350.0,123340.0,0.53459925]
[1755139001146,0.02422851,123350.0,123340.0,0.39975925]
[1755139001346,0.02422851,123350.0,123340.0,0.53459925]
[1755139001651,0.02422851,123350.0,123340.0,0.53451925]
[1755139001862,0.02422851,123350.0,123340.0,0.39975925]
[1755139002074,0.02422851,123350.0,123340.0,0.53451925]
[1755139002480,0.02422851,123350.0,123340.0,0.47681718]
[1755139002764,0.02422851,123350.0,123340.0,0.54961267]
[1755139003422,0.00916875,123350.0,123340.0,0.54961267]
[1755139003820,0.00916875,123350.0,123340.0,0.37798467]
[1755139003982,0.00916875,123350.0,123340.0,0.23914867]
[1755139004187,0.00916875,123350.0,123340.0,0.37366867]
[1755139004368,0.00193134,123350.0,123340.0,0.30087318]
[1755139004583,0.08662459,123350.0,123340.0,0.07352329]
[1755139004804,0.08662459,123350.0,123340.0,0.1356]
[1755139005009,0.08662459,123350.0,123340.0,0.43072]
[1755139005210,0.08662459,123350.0,123340.0,0.32976]
[1755139005861,0.08662459,123350.0,123340.0,0.19516]
[1755139006018,0.08762459,123350.0,123340.0,0.13552]
[1755139006217,0.08762459,123350.0,123340.0,0.001]
[1755139006423,0.08762459,123350.0,123340.0,0.07352329]
[1755139006673,0.08762459,123350.0,123340.0,0.20800329]
[1755139007008,0.08762459,123350.0,123340.0,0.20700329]
[1755139007381,0.1037589,123350.0,123340.0,0.20700329]
[1755139007578,0.1027589,123350.0,123340.0,0.20700329]
[1755139007780,0.1027589,123350.0,123340.0,0.26511869]
[1755139007987,0.1037589,123350.0,123340.0,0.1925954]
[1755139008144,0.1057589,123350.0,123340.0,0.13448]
[1755139008553,0.1057589,123350.0,123340.0,0.19259008]
[1755139009854,0.1057589,123350.0,123340.0,0.05811008]
[1755139010061,0.1057589,123350.0,123340.0,0.19243008]
[1755139010482,0.1057589,123350.0,123340.0,0.05811008]
[1755139010685,0.1301289,123350.0,123340.0,0.19239008]
[1755139010995,0.1301289,123350.0,123330.0,0.05811008]
[1755139011222,0.11006325,123340.0,123330.0,0.05811008]
[1755139011568,0.12716756,123340.0,123330.0,0.19239008]
[1755139012269,0.025,123300.0,123260.0,0.07260695]
[1755139012471,0.04013431,123300.0,123290.0,0.00197]
[1755139012767,0.04013431,123300.0,123290.0,0.50197]
[1755139012972,0.04013431,123300.0,123290.0,0.00197]
[1755139013327,0.04013431,123300.0,123290.0,0.13621]
[1755139013548,0.04013431,123300.0,123290.0,0.63621]
[1755139014777,0.04013431,123300.0,123290.0,0.66066303]
[1755139014975,0.04013431,123300.0,123290.0,0.76162303]
[1755139015247,0.025,123300.0,123290.0,0.55878303]
[1755139015814,0.025,123300.0,123290.0,0.56078303]
[1755139016503,0.025,123300.0,123290.0,0.22462303]
[1755139016705,0.025,123300.0,123290.0,0.85878303]
[1755139016928,0.025,123300.0,123290.0,0.35878303]
[1755139017178,0.025,123300.0,123290.0,0.35870303]
[1755139017932,0.025,123300.0,123290.0,0.15964734]
[1755139018131,0.025,123300.0,123290.0,0.66090734]
[1755139018768,0.025,123300.0,123270.0,0.08272325]
[1755139018969,0.02797,123300.0,123280.0,0.175153]
[1755139019180,0.02797,123300.0,123290.0,0.5]
[1755139019366,0.02994,123300.0,123280.0,0.10705437]
[1755139020044,0.02994,123300.0,123290.0,0.13416]
[1755139020246,0.09678771,123300.0,123280.0,0.60705437]
[1755139020468,0.05297,123290.0,123280.0,0.02433112]
[1755139020673,0.05494,123290.0,123270.0,0.004]
[1755139020851,0.07697,123290.0,123270.0,0.004]
[1755139021057,0.07697,123290.0,123280.0,0.06048]
[1755139021458,0.07994,123290.0,123280.0,0.1208]
[1755139021693,0.025,123280.0,123260.0,0.02407008]
[1755139021891,0.02797,123280.0,123260.0,0.10679333]
[1755139022141,0.02597,123280.0,123270.0,0.1382]
[1755139022346,0.02794,123280.0,123270.0,0.1382]
[1755139022693,0.02794,123280.0,123270.0,0.13612]
[1755139023644,0.02994,123280.0,123200.0,0.5]
[1755139023846,0.02994,123280.0,123200.0,0.43048696]
[1755139023995,0.02994,123280.0,123220.0,0.08272325]
[1755139024342,0.02994,123280.0,123260.0,0.002]
[1755139024760,0.02994,123280.0,123270.0,0.13612]
[1755139024895,0.02994,123280.0,123270.0,0.23712]
[1755139025102,0.02994,123280.0,123270.0,0.43136]
[1755139025297,0.03094,123280.0,123270.0,0.43136]
[1755139026059,0.02694,123280.0,123270.0,0.43136]
[1755139026245,0.02891,123280.0,123270.0,0.43136]
[1755139026431,0.02891,123280.0,123270.0,0.70187649]
[1755139027155,0.02891,123280.0,123270.0,0.70387649]
[1755139027917,0.02791,123280.0,123270.0,0.70387649]
[1755139028124,0.03084,123280.0,123270.0,0.70387649]
[1755139028342,0.03084,123280.0,123270.0,0.51063649]
[1755139029152,0.02791,123280.0,123270.0,0.51063649]
[1755139029721,0.02291,123280.0,123270.0,0.51063649]
[1755139030656,0.02584,123280.0,123270.0,0.13912]
[1755139030856,0.02584,123280.0,123270.0,0.37251649]
[1755139031088,0.02584,123280.0,123270.0,0.50823649]
[1755139031738,0.07584,123280.0,123270.0,0.001]
[1755139031947,0.15856325,123280.0,123270.0,0.37251649]
[1755139032134,0.15856325,123280.0,123270.0,0.50815649]
[1755139032332,0.15856325,123280.0,123270.0,0.13664]
[1755139032665,0.15856325,123280.0,123270.0,0.37251649]
[1755139032866,0.15856325,123280.0,123270.0,0.37151649]
[1755139033001,0.15756325,123280.0,123270.0,0.13584]
[1755139033201,0.15856325,123280.0,123270.0,0.13584]
[1755139033423,0.15856325,123280.0,123270.0,0.50735649]
[1755139033834,0.17366439,123280.0,123270.0,0.37151649]
[1755139034038,0.17366439,123280.0,123270.0,0.50739649]
[1755139034241,0.17466439,123280.0,123270.0,0.50739649]
[1755139034994,0.17466439,123280.0,123270.0,0.90367649]
[1755139035436,0.16976439,123280.0,123270.0,0.80267649]
[1755139035633,0.16976439,123280.0,123270.0,0.80247649]
[1755139035838,0.16976439,123280.0,123270.0,0.80447649]
[1755139036202,0.17172439,123280.0,123270.0,0.80447649]
[1755139036405,0.17172439,123280.0,123270.0,0.43296]
[1755139036611,0.17465439,123280.0,123270.0,0.80447649]
[1755139039356,0.17172439,123280.0,123270.0,0.80447649]
[1755139039757,0.15662325,123280.0,123270.0,0.50919649]
[1755139039906,0.17172462,123280.0,123270.0,0.50919649]
[1755139040102,0.17465462,123280.0,123270.0,0.50919649]
[1755139042770,0.17172462,123280.0,123270.0,0.50919649]
[1755139043932,0.17465462,123280.0,123270.0,0.50919649]
[1755139045009,0.17465462,123280.0,123270.0,0.90555649]
[1755139045820,0.17466149,123280.0,123270.0,0.90555649]
[1755139046014,0.17466149,123280.0,123270.0,0.53404]
[1755139046215,0.17466149,123280.0,123270.0,0.90555649]
[1755139046437,0.17466149,123280.0,123270.0,0.39636]
[1755139046616,0.17466149,123280.0,123270.0,0.42996]
[1755139047446,0.17466149,123280.0,123270.0,0.32892]
[1755139047785,0.17266149,123280.0,123270.0,0.32892]
[1755139047990,0.17366149,123280.0,123270.0,0.32892]
[1755139048120,0.17566149,123280.0,123270.0,0.32892]
[1755139048326,0.17566149,123280.0,123270.0,0.70043649]
[1755139048580,0.17466149,123280.0,123270.0,0.70043649]
[1755139048794,0.17667004,123280.0,123270.0,0.70043649]
[1755139049544,0.17667004,123280.0,123270.0,0.50615649]
[1755139049679,0.18097304,123280.0,123270.0,0.50615649]
[1755139050045,0.18297304,123280.0,123270.0,0.36179959]
[1755139050419,0.18297684,123280.0,123270.0,0.36179959]
[1755139050979,0.18297684,123280.0,123270.0,0.37151649]
[1755139051196,0.18297684,123280.0,123270.0,0.50591649]
[1755139052053,0.18297684,123280.0,123270.0,0.1344]
[1755139052346,0.05,123260.0,123250.0,0.00294]
[1755139052541,0.06512059,123260.0,123250.0,0.51065649]
[1755139052930,0.06512059,123260.0,123250.0,0.37351649]
[1755139053096,0.16974384,123260.0,123250.0,0.50771649]
[1755139053298,0.17267384,123260.0,123250.0,0.37351649]
[1755139053523,0.17267384,123260.0,123250.0,0.50767649]
[1755139053717,0.17367384,123260.0,123250.0,0.50767649]
[1755139054220,0.17367384,123260.0,123250.0,0.37351649]
[1755139054567,0.17367384,123260.0,123250.0,0.50763649]
[1755139054720,0.17074384,123260.0,123250.0,0.50763649]
[1755139054942,0.17074384,123260.0,123250.0,0.90403649]
[1755139055922,0.16878384,123260.0,123250.0,0.90403649]
[1755139056123,0.16878384,123260.0,123250.0,0.53252]
[1755139056347,0.16878384,123260.0,123250.0,0.3984]
[1755139056471,0.16878384,123260.0,123250.0,0.90403649]
[1755139056671,0.16878384,123260.0,123250.0,0.70195649]
[1755139058434,0.16878384,123260.0,123250.0,0.33044]
[1755139058641,0.16878384,123260.0,123250.0,0.70195649]
[1755139059726,0.16878384,123260.0,123250.0,0.33044]
[1755139060155,0.16878384,123260.0,123250.0,0.70195649]
[1755139061718,0.16878384,123260.0,123250.0,0.33044]
[1755139062079,0.17409384,123260.0,123250.0,0.33044]
[1755139062218,0.17409384,123260.0,123250.0,0.70195649]
[1755139062627,0.17409384,123260.0,123250.0,0.50763649]
[1755139062873,0.17409384,123260.0,123250.0,0.13412]
[1755139063089,0.01994,123240.0,123230.0,0.00319]
[1755139063229,0.03506059,123240.0,123230.0,0.51087649]
[1755139064129,0.06994,123240.0,123230.0,0.51291649]
[1755139064367,0.06994,123240.0,123230.0,0.37867649]
[1755139064542,0.06994,123240.0,123230.0,0.51487649]
[1755139064947,0.06994,123240.0,123230.0,0.91127649]
[1755139065152,0.06994,123240.0,123230.0,0.53776]
[1755139065463,0.06994,123240.0,123230.0,0.90727649]
[1755139065664,0.06994,123240.0,123230.0,0.90827649]
[1755139066193,0.06994,123240.0,123230.0,0.80723649]
[1755139067085,0.06994,123240.0,123230.0,0.80823649]
[1755139067505,0.06994,123240.0,123230.0,0.83270628]
[1755139068106,0.06994,123240.0,123230.0,0.73210628]
[1755139069828,0.06994,123240.0,123230.0,0.72891628]
[1755139070422,0.06994,123240.0,123230.0,0.72791628]
[1755139070773,0.06994,123240.0,123230.0,0.72891628]
[1755139071188,0.06994,123240.0,123230.0,0.73010628]
[1755139071613,0.06994,123240.0,123230.0,0.73110628]
[1755139071782,0.06994,123240.0,123230.0,0.53674628]
[1755139071982,0.06994,123240.0,123230.0,0.53574628]
[1755139072448,0.06994,123240.0,123230.0,0.40114628]
[1755139072612,0.06994,123240.0,123230.0,0.53554628]
[1755139073658,0.06994,123240.0,123230.0,0.53235628]
[1755139074362,0.06994,123240.0,123230.0,0.39795628]
[1755139074501,0.06994,123240.0,123230.0,0.53223628]
[1755139074924,0.06994,123240.0,123230.0,0.56030979]
[1755139075148,0.06994,123240.0,123230.0,0.93182628]
[1755139075937,0.06994,123240.0,123230.0,0.90731649]
[1755139076064,0.06994,123240.0,123230.0,1.65034947]
[1755139076265,0.06994,123240.0,123230.0,0.90731649]
[1755139076498,0.06994,123240.0,123230.0,0.67203649]
[1755139076699,0.06994,123240.0,123230.0,0.57099649]
[1755139076903,0.06994,123240.0,123230.0,0.51087649]
[1755139077724,0.06994,123240.0,123230.0,0.13936]
[1755139077922,0.06994,123240.0,123230.0,0.51087649]
[1755139078096,0.06994,123240.0,123230.0,0.37151649]
[1755139079450,0.06994,123240.0,123230.0,0.50571649]
[1755139080700,0.06994,123240.0,123220.0,0.02481933]
[1755139080900,0.06994,123240.0,123230.0,0.50563649]
[1755139081102,0.0721,123240.0,123190.0,0.43048696]
[1755139081324,0.0721,123240.0,123230.0,0.37151649]
[1755139081497,0.07525,123240.0,123200.0,0.08272325]
[1755139081682,0.15482325,123240.0,123230.0,0.37151649]
[1755139081883,0.15482325,123240.0,123230.0,0.50559649]
[1755139082322,0.15797325,123240.0,123230.0,0.50559649]
[1755139082483,0.15897325,123240.0,123230.0,0.37151649]
[1755139082683,0.15897325,123240.0,123230.0,0.50551649]
[1755139082884,0.15797325,123240.0,123230.0,0.50551649]
[1755139084153,0.15797325,123240.0,123230.0,0.37151649]
[1755139084377,0.15997325,123240.0,123230.0,0.13396]
[1755139084542,0.15997325,123240.0,123230.0,0.50547649]
[1755139084724,0.15997325,123240.0,123230.0,0.37151649]
[1755139084940,0.15997325,123240.0,123230.0,0.90175649]
[1755139086945,0.15997325,123240.0,123230.0,0.53024]
[1755139087145,0.15997325,123240.0,123230.0,0.90175649]
[1755139087872,0.15997325,123240.0,123230.0,0.80071649]
[1755139088417,0.15997325,123240.0,123230.0,0.37151649]
[1755139088543,0.06994,123220.0,123200.0,0.17849232]
[1755139088745,0.07319,123220.0,123210.0,0.50499649]
[1755139089389,0.02319,123220.0,123210.0,0.50499649]
[1755139089760,0.07319,123220.0,123210.0,0.50499649]
[1755139090311,0.07319,123220.0,123210.0,0.50599649]
[1755139091155,0.07525,123220.0,123210.0,0.37251649]
[1755139091356,0.07525,123220.0,123210.0,0.50591649]
[1755139091357,0.15797325,123220.0,123210.0,0.50591649]
[1755139094178,0.15797325,123220.0,123210.0,0.50691649]
[1755139094693,0.15797325,123220.0,123210.0,0.13536]
[1755139094872,0.15797325,123220.0,123210.0,0.002]
[1755139095067,0.15797325,123220.0,123210.0,0.53192]
[1755139095427,0.15797325,123220.0,123210.0,0.3298]
[1755139095801,0.15797325,123220.0,123210.0,0.3288]
[1755139096009,0.15997325,123220.0,123210.0,0.3278]
[1755139096381,0.16197325,123220.0,123210.0,0.3278]
[1755139096775,0.16197325,123220.0,123210.0,0.13344]
[1755139096982,0.16197325,123220.0,123210.0,0.50495649]
[1755139100474,0.16197325,123220.0,123210.0,0.13344]
[1755139100689,0.16197325,123220.0,123210.0,0.50495649]
[1755139101110,0.16197325,123220.0,123210.0,0.37151649]
[1755139101336,0.16197325,123220.0,123210.0,0.50483649]
[1755139101782,0.16197325,123220.0,123210.0,0.13332]
[1755139101995,0.16197325,123220.0,123210.0,0.50483649]
[1755139102206,0.07394,123220.0,123210.0,0.37151649]
[1755139102649,0.07394,123220.0,123210.0,0.50587649]
[1755139103327,0.15666325,123220.0,123210.0,0.37151649]
[1755139103527,0.06994,123210.0,123200.0,0.03345013]
[1755139103641,0.15797325,123210.0,123200.0,0.40496662]
[1755139103843,0.15797325,123210.0,123200.0,0.50591649]
[1755139104066,0.15797325,123210.0,123200.0,0.37151649]
[1755139104295,0.15797325,123210.0,123200.0,0.50591649]
[1755139104708,0.15797325,123210.0,123200.0,0.53815602]
[1755139105023,0.15997325,123210.0,123200.0,0.93471602]
[1755139106010,0.15997325,123210.0,123200.0,0.83363602]
[1755139106388,0.15997325,123210.0,123200.0,0.46211953]
[1755139106594,0.15997325,123210.0,123200.0,0.83363602]
[1755139107152,0.15997325,123210.0,123200.0,0.83351602]
[1755139107739,0.15997325,123210.0,123200.0,0.46199953]
[1755139107950,0.15997325,123210.0,123200.0,0.83351602]
[1755139108157,0.15997325,123210.0,123200.0,0.46199953]
[1755139108444,0.15997325,123210.0,123200.0,0.83351602]
[1755139108998,0.15997325,123210.0,123200.0,0.53803602]
[1755139109807,0.15997325,123210.0,123200.0,0.16651953]
[1755139109977,0.15997325,123210.0,123200.0,0.53803602]
[1755139113747,0.15997325,123210.0,123200.0,0.16651953]
[1755139113921,0.15997325,123210.0,123200.0,0.03223953]
[1755139114177,0.15997325,123210.0,123200.0,0.50559649]
[1755139114903,0.15997325,123210.0,123200.0,0.60667649]
[1755139115111,0.15997325,123210.0,123200.0,0.66699649]
[1755139115339,0.15997325,123210.0,123200.0,0.69999649]
[1755139116271,0.15997325,123210.0,123200.0,0.53814859]
[1755139116653,0.15997325,123210.0,123200.0,0.37151649]
[1755139116852,0.06994,123200.0,123190.0,0.37151649]
[1755139117085,0.15469325,123200.0,123190.0,0.50559649]
[1755139117288,0.15782325,123200.0,123190.0,0.50559649]
[1755139117490,0.15782325,123200.0,123190.0,0.37151649]
[1755139117709,0.15782325,123200.0,123190.0,0.50559649]
[1755139118198,0.15782325,123200.0,123190.0,0.16667913]
[1755139118397,0.15782325,123200.0,123190.0,0.53819562]
[1755139121184,0.15882325,123200.0,123190.0,0.53819562]
[1755139121367,0.15982325,123200.0,123190.0,0.53819562]
[1755139123493,0.15982325,123200.0,123190.0,0.16667913]
[1755139123711,0.15982325,123200.0,123190.0,0.53819562]
[1755139124815,0.15466325,123200.0,123190.0,0.40411562]
[1755139125014,0.15466325,123200.0,123190.0,0.69963562]
[1755139125221,0.15466325,123200.0,123190.0,0.83343562]
[1755139125455,0.15466325,123200.0,123190.0,0.22703913]
[1755139125657,0.052,123200.0,123190.0,0.73235562]
[1755139125834,0.07194,123200.0,123190.0,0.53803562]
[1755139126033,0.002,123200.0,123190.0,0.53803562]
[1755139126235,0.002,123200.0,123190.0,0.40411562]
[1755139126435,0.02194,123200.0,123190.0,0.16651913]
[1755139126636,0.02194,123200.0,123190.0,0.53803562]
[1755139127051,0.06684771,123250.0,123190.0,0.54254562]
[1755139127252,0.08272325,123240.0,123200.0,0.13636]
[1755139127449,0.08272325,123240.0,123230.0,0.00207]
[1755139127651,0.08475325,123240.0,123230.0,0.13603]
[1755139128077,0.08475325,123240.0,123230.0,0.13396]
[1755139128579,0.08475325,123240.0,123230.0,0.50547649]
[1755139129100,0.08988325,123240.0,123230.0,0.50547649]
[1755139130059,0.09188325,123240.0,123230.0,0.37151649]
[1755139130281,0.09188325,123240.0,123230.0,0.50531649]
[1755139130527,0.08672325,123240.0,123230.0,0.50986649]
[1755139130850,0.08672325,123240.0,123230.0,0.37602649]
[1755139131364,0.08672325,123240.0,123230.0,0.50998649]
[1755139131688,0.004,123240.0,123230.0,0.37602649]
[1755139131905,0.004,123240.0,123230.0,0.50998649]
[1755139132509,0.004,123240.0,123230.0,0.50754649]
[1755139133137,0.09188325,123240.0,123230.0,0.50754649]
[1755139134988,0.09188325,123240.0,123230.0,0.90410649]
[1755139135746,0.08672325,123240.0,123230.0,0.90410649]
[1755139136534,0.004,123240.0,123230.0,1.31345947]
[1755139136742,0.004,123240.0,123230.0,1.44737947]
[1755139136948,0.004,123240.0,123230.0,1.25297947]
[1755139137686,0.002,123240.0,123230.0,1.25297947]
[1755139137885,0.00313,123270.0,123230.0,1.25297947]
[1755139138086,0.00313,123270.0,123250.0,0.37151649]
[1755139138087,0.08272325,123260.0,123250.0,0.37151649]
[1755139138285,0.08475325,123260.0,123250.0,0.37151649]
[1755139138486,0.08788325,123260.0,123250.0,0.50543649]
[1755139139056,0.08788325,123260.0,123250.0,0.37151649]
[1755139139257,0.08788325,123260.0,123250.0,0.50543649]
[1755139139469,0.08988325,123260.0,123250.0,0.50543649]
[1755139140361,0.09188325,123260.0,123250.0,0.50543649]
[1755139141804,0.09188325,123260.0,123250.0,0.37358649]
[1755139142240,0.09188325,123260.0,123250.0,0.50730649]
[1755139142588,0.08672325,123260.0,123250.0,0.50730649]
[1755139142754,0.08672325,123260.0,123250.0,0.50734649]
[1755139143154,0.08672325,123260.0,123250.0,0.50738649]
[1755139143358,0.004,123260.0,123250.0,0.37602649]
[1755139143567,0.004,123260.0,123250.0,0.54309399]
[1755139143944,0.004,123260.0,123250.0,0.0377775]
[1755139144154,0.004,123260.0,123250.0,0.54313399]
[1755139145061,0.004,123260.0,123250.0,0.93957399]
[1755139145275,0.004,123260.0,123250.0,0.5680575]
[1755139145476,0.004,123260.0,123250.0,0.93957399]
[1755139146115,0.004,123260.0,123250.0,0.83845399]
[1755139146560,0.004,123260.0,123250.0,0.60121399]
[1755139146759,0.004,123260.0,123250.0,0.73501399]
[1755139147477,0.004,123260.0,123250.0,0.40685399]
[1755139147683,0.004,123260.0,123250.0,0.54073399]
[1755139148732,0.004,123260.0,123250.0,0.1692175]
[1755139149018,0.004,123260.0,123250.0,0.54073399]
[1755139151497,0.004,123260.0,123250.0,0.1692175]
[1755139151746,0.004,123260.0,123250.0,0.54073399]
[1755139152322,0.004,123260.0,123250.0,0.1692175]
[1755139152487,0.004,123260.0,123250.0,0.54073399]
[1755139153155,0.004,123260.0,123250.0,0.54317399]
[1755139153767,0.004,123260.0,123250.0,0.54073399]
[1755139155235,0.004,123260.0,123250.0,0.83609399]
[1755139156213,0.004,123260.0,123250.0,0.4645775]
[1755139156438,0.004,123260.0,123250.0,0.83609399]
[1755139157012,0.004,123260.0,123250.0,0.73505399]
[1755139159066,0.004,123260.0,123250.0,0.40685399]
[1755139159228,0.004,123260.0,123250.0,0.54281399]
[1755139159963,0.004,123260.0,123250.0,0.40929399]
[1755139160185,0.004,123260.0,123250.0,0.54269399]
[1755139162265,0.004,123260.0,123250.0,0.35219121]
[1755139162467,0.004,123260.0,123250.0,0.35278121]
[1755139163713,0.004,123260.0,123250.0,0.38545245]
[1755139164114,0.004,123260.0,123250.0,0.38566245]
[1755139164316,0.004,123260.0,123250.0,0.25205245]
[1755139164590,0.004,123260.0,123250.0,0.38537245]
[1755139164993,0.004,123260.0,123250.0,0.78177245]
[1755139166951,0.00911,123260.0,123250.0,0.57953245]
[1755139168115,0.004,123260.0,123250.0,0.57953245]
[1755139168789,0.004,123260.0,123250.0,0.38521245]
[1755139168998,0.004,123260.0,123250.0,0.38517245]
[1755139169196,0.00704,123260.0,123250.0,0.38517245]
[1755139169834,0.00704,123260.0,123250.0,0.53789773]
[1755139172648,0.00704,123260.0,123250.0,0.16638124]
[1755139172844,0.00704,123260.0,123250.0,0.53789773]
[1755139174990,0.00704,123260.0,123250.0,0.93429773]
[1755139175654,0.004,123260.0,123250.0,0.93429773]
[1755139176065,0.004,123260.0,123250.0,0.83301773]
[1755139176521,0.004,123260.0,123250.0,0.73197773]
[1755139180488,0.004,123260.0,123250.0,0.53765773]
[1755139182882,0.004,123260.0,123250.0,2.89937198]
[1755139183067,0.00607885,123280.0,123250.0,2.89937198]
[1755139183267,0.00607885,123280.0,123270.0,0.37151649]
[1755139183416,0.00607885,123280.0,123270.0,0.50423649]
[1755139183619,0.00607885,123280.0,123270.0,0.50482649]
[1755139184541,0.00607885,123280.0,123270.0,0.50519649]
[1755139184805,0.00607885,123280.0,123270.0,0.50482649]
[1755139185081,0.00607885,123280.0,123270.0,0.90122649]
[1755139186315,0.00607885,123280.0,123270.0,0.66846649]
[1755139186457,0.00607885,123280.0,123270.0,0.80098649]
[1755139187080,0.00607885,123280.0,123270.0,0.56742649]
[1755139187298,0.00918885,123280.0,123270.0,0.37310649]
[1755139187652,0.01130885,123280.0,123270.0,0.50491649]
[1755139189808,0.01130885,123280.0,123270.0,0.37251649]
[1755139190008,0.01130885,123280.0,123270.0,0.50479649]
[1755139190200,0.00607885,123280.0,123270.0,0.50538649]
[1755139190808,0.00607885,123280.0,123270.0,0.50534649]
[1755139192033,0.00607885,123280.0,123270.0,0.37310649]
[1755139192230,0.00607885,123280.0,123270.0,0.50530649]
[1755139192436,0.00607885,123280.0,123270.0,0.37310649]
[1755139192615,0.00607885,123280.0,123270.0,0.50522649]
[1755139194999,0.00607885,123280.0,123270.0,0.90158649]
[1755139195834,0.00607885,123280.0,123270.0,0.76946649]
[1755139196112,0.01130885,123280.0,123270.0,0.79991649]
[1755139196444,0.01130885,123280.0,123270.0,0.69875649]
[1755139196588,0.01130885,123280.0,123270.0,0.37251649]
[1755139196793,0.01130885,123280.0,123270.0,0.50443649]
[1755139197341,0.0940321,123280.0,123270.0,0.13288]
[1755139197550,0.0940321,123280.0,123270.0,0.37251649]
[1755139197680,0.0940321,123280.0,123270.0,0.50439649]
[1755139200427,0.0940321,123280.0,123270.0,0.13288]
[1755139200628,0.0940321,123280.0,123270.0,0.50439649]
[1755139201485,0.0940321,123280.0,123270.0,0.13288]
[1755139201685,0.0940321,123280.0,123270.0,0.50439649]
[1755139202787,0.0940321,123280.0,123270.0,0.50403649]
[1755139202947,0.0940321,123280.0,123270.0,0.37251649]
[1755139203150,0.0940321,123280.0,123270.0,0.50395649]
[1755139204579,0.0940321,123280.0,123270.0,0.37251649]
[1755139204799,0.0940321,123280.0,123270.0,0.50438649]
[1755139205005,0.0940321,123280.0,123270.0,0.90074649]
[1755139205168,0.00607885,123280.0,123270.0,0.66842649]
[1755139205376,0.00607885,123280.0,123270.0,2.51415849]
[1755139205635,0.00607885,123280.0,123270.0,2.23266349]
[1755139205997,0.00607885,123280.0,123270.0,1.46796749]
[1755139206204,0.00607885,123280.0,123270.0,1.59916749]
[1755139206606,0.00607885,123280.0,123270.0,1.46326249]
[1755139207485,0.00607885,123280.0,123270.0,2.24293872]
[1755139207694,0.00607885,123280.0,123270.0,1.63102574]